[Event "Titled Tuesday Blitz May 4 2021"]
[White "Abdalla, Luiz Guilherme Aurelli"]
[Black "Lehtosaari, Mauri"]
[WhiteFideId "2111080"]
[BlackFideId "501999"]
[WhiteElo "2152"]
[BlackElo "2408"]
[Result "0-1"]
[Round "04"]
[TimeControl "180+1"]
[Date "2021.05.04"]
[WhiteClock "0:00:07"]
[BlackClock "0:00:26"]

1. d4 {[%clk 0:03:00]}  d5 {[%clk 0:02:59]} 2. c4 {[%clk 0:03:01]}  c6 {[%clk 0:03:00]} 3. Nf3 {[%clk 0:03:01]}  Nf6 {[%clk 0:03:00]} 4. e3 {[%clk 0:03:00]}  Bg4 {[%clk 0:03:00]} 5. Nc3 {[%clk 0:02:58]}  e6 {[%clk 0:03:00]} 6. h3 {[%clk 0:02:53]}  Bh5 {[%clk 0:03:00]} 7. g4 {[%clk 0:02:49]}  Bg6 {[%clk 0:03:00]} 8. Ne5 {[%clk 0:02:50]}  Nfd7 {[%clk 0:02:58]} 9. h4 {[%clk 0:02:29]}  Nxe5 {[%clk 0:02:56]} 10. dxe5 {[%clk 0:02:30]}  h5 {[%clk 0:02:53]} 11. cxd5 {[%clk 0:02:24]}  cxd5 {[%clk 0:02:50]} 12. Bb5+ {[%clk 0:02:23]}  Nc6 {[%clk 0:02:47]} 13. g5 {[%clk 0:02:22]}  Qb6 {[%clk 0:02:44]} 14. Qa4 {[%clk 0:02:02]}  Be7 {[%clk 0:02:31]} 15. Bd2 {[%clk 0:01:54]}  O-O {[%clk 0:02:28]} 16. Qf4 {[%clk 0:01:38]}  d4 {[%clk 0:01:56]} 17. exd4 {[%clk 0:01:25]}  Nxd4 {[%clk 0:01:56]} 18. Ba4 {[%clk 0:01:16]}  Qxb2 {[%clk 0:01:24]} 19. O-O {[%clk 0:01:14]}  Qxd2 {[%clk 0:01:20]} 20. Qxd2 {[%clk 0:01:11]}  Nf3+ {[%clk 0:01:20]} 21. Kg2 {[%clk 0:01:10]}  Nxd2 {[%clk 0:01:21]} 22. Rfd1 {[%clk 0:01:08]}  Ne4 {[%clk 0:01:05]} 23. Nb5 {[%clk 0:01:02]}  Nc5 {[%clk 0:00:58]} 24. Bb3 {[%clk 0:00:59]}  a6 {[%clk 0:00:46]} 25. Nd6 {[%clk 0:00:58]}  Nxb3 {[%clk 0:00:38]} 26. axb3 {[%clk 0:00:58]}  Rfd8 {[%clk 0:00:34]} 27. Kf3 {[%clk 0:00:33]}  Rd7 {[%clk 0:00:33]} 28. Nc4 {[%clk 0:00:25]}  Rad8 {[%clk 0:00:30]} 29. Rxd7 {[%clk 0:00:18]}  Rxd7 {[%clk 0:00:31]} 30. Na5 {[%clk 0:00:05]}  Bb4 {[%clk 0:00:28]} 31. Ra4 {[%clk 0:00:03]}  Bxa5 {[%clk 0:00:26]} 32. Rxa5 {[%clk 0:00:04]}  Rd3+ {[%clk 0:00:26]} 33. Kg2 {[%clk 0:00:03]}  Rxb3 {[%clk 0:00:26]} 34. Rc5 {[%clk 0:00:03]}  Kh7 {[%clk 0:00:25]} 35. Rc8 {[%clk 0:00:04]}  a5 {[%clk 0:00:25]} 36. Rc7 {[%clk 0:00:05]}  a4 {[%clk 0:00:25]} 37. Rc8 {[%clk 0:00:06]}  a3 {[%clk 0:00:25]} 38. Ra8 {[%clk 0:00:07]}  b5 {[%clk 0:00:26]} 0-1


[Site "https://www.chess.com"]

[Event "Titled Tuesday Blitz May 4 2021"]
[White "Albuquerque Junior,Wellington S."]
[Black "Sieciechowicz, Marcin"]
[WhiteFideId "2151480"]
[BlackFideId "1130170"]
[WhiteElo "2042"]
[BlackElo "2288"]
[Result "0-1"]
[Round "04"]
[TimeControl "180+1"]
[Date "2021.05.04"]
[WhiteClock "0:00:06"]
[BlackClock "0:00:20"]

1. c4 {[%clk 0:03:00]}  Nf6 {[%clk 0:02:59]} 2. g3 {[%clk 0:02:59]}  d5 {[%clk 0:02:57]} 3. cxd5 {[%clk 0:02:58]}  Nxd5 {[%clk 0:02:58]} 4. Bg2 {[%clk 0:02:59]}  g6 {[%clk 0:02:58]} 5. Nc3 {[%clk 0:02:58]}  Nb6 {[%clk 0:02:59]} 6. d3 {[%clk 0:02:59]}  Bg7 {[%clk 0:02:59]} 7. Be3 {[%clk 0:02:59]}  Nc6 {[%clk 0:02:59]} 8. Qd2 {[%clk 0:02:59]}  Nd4 {[%clk 0:02:59]} 9. Nf3 {[%clk 0:02:54]}  O-O {[%clk 0:02:59]} 10. h4 {[%clk 0:02:50]}  h5 {[%clk 0:02:55]} 11. Nxd4 {[%clk 0:02:39]}  Bxd4 {[%clk 0:02:54]} 12. Bxd4 {[%clk 0:02:39]}  Qxd4 {[%clk 0:02:55]} 13. e3 {[%clk 0:02:30]}  Qd8 {[%clk 0:02:47]} 14. O-O-O {[%clk 0:02:27]}  c6 {[%clk 0:02:47]} 15. Bf3 {[%clk 0:02:19]}  Be6 {[%clk 0:02:44]} 16. Rdg1 {[%clk 0:02:17]}  Nd5 {[%clk 0:02:44]} 17. Kb1 {[%clk 0:02:14]}  Qa5 {[%clk 0:02:39]} 18. Bxd5 {[%clk 0:02:06]}  cxd5 {[%clk 0:02:36]} 19. Ne4 {[%clk 0:01:37]}  Qxd2 {[%clk 0:02:29]} 20. Nxd2 {[%clk 0:01:38]}  Bf5 {[%clk 0:02:29]} 21. e4 {[%clk 0:01:38]}  dxe4 {[%clk 0:02:29]} 22. dxe4 {[%clk 0:01:38]}  Be6 {[%clk 0:02:08]} 23. Rd1 {[%clk 0:01:28]}  Rad8 {[%clk 0:01:56]} 24. f3 {[%clk 0:01:20]}  Rd3 {[%clk 0:01:42]} 25. Kc2 {[%clk 0:01:17]}  Rfd8 {[%clk 0:01:42]} 26. b3 {[%clk 0:01:11]}  R8d6 {[%clk 0:01:37]} 27. Rhf1 {[%clk 0:00:56]}  Kf8 {[%clk 0:01:28]} 28. Nb1 {[%clk 0:00:47]}  Rxd1 {[%clk 0:01:08]} 29. Rxd1 {[%clk 0:00:48]}  Rxd1 {[%clk 0:01:05]} 30. Kxd1 {[%clk 0:00:49]}  Ke8 {[%clk 0:01:05]} 31. Kd2 {[%clk 0:00:49]}  Kd7 {[%clk 0:01:03]} 32. Ke3 {[%clk 0:00:49]}  Kd6 {[%clk 0:01:03]} 33. Kd4 {[%clk 0:00:49]}  Bd7 {[%clk 0:01:02]} 34. e5+ {[%clk 0:00:48]}  Ke6 {[%clk 0:01:00]} 35. Nd2 {[%clk 0:00:42]}  Bc6 {[%clk 0:00:59]} 36. Ne4 {[%clk 0:00:34]}  Kf5 {[%clk 0:00:59]} 37. Nd2 {[%clk 0:00:28]}  a6 {[%clk 0:00:48]} 38. a3 {[%clk 0:00:26]}  e6 {[%clk 0:00:46]} 39. b4 {[%clk 0:00:20]}  Bd5 {[%clk 0:00:40]} 40. a4 {[%clk 0:00:19]}  b6 {[%clk 0:00:38]} 41. a5 {[%clk 0:00:15]}  bxa5 {[%clk 0:00:24]} 42. bxa5 {[%clk 0:00:15]}  g5 {[%clk 0:00:24]} 43. hxg5 {[%clk 0:00:13]}  Kxg5 {[%clk 0:00:25]} 44. Ke3 {[%clk 0:00:11]}  Kf5 {[%clk 0:00:25]} 45. f4 {[%clk 0:00:11]}  Kg4 {[%clk 0:00:25]} 46. Kf2 {[%clk 0:00:11]}  h4 {[%clk 0:00:25]} 47. gxh4 {[%clk 0:00:12]}  Kxf4 {[%clk 0:00:25]} 48. h5 {[%clk 0:00:08]}  Kxe5 {[%clk 0:00:25]} 49. Ke3 {[%clk 0:00:09]}  f5 {[%clk 0:00:21]} 50. h6 {[%clk 0:00:08]}  f4+ {[%clk 0:00:20]} 51. Kd3 {[%clk 0:00:08]}  Kf6 {[%clk 0:00:20]} 52. Kd4 {[%clk 0:00:08]}  Kg6 {[%clk 0:00:20]} 53. Ke5 {[%clk 0:00:08]}  f3 {[%clk 0:00:20]} 54. Kf4 {[%clk 0:00:07]}  Kxh6 {[%clk 0:00:19]} 55. Nxf3 {[%clk 0:00:06]}  Bxf3 {[%clk 0:00:18]} 56. Kxf3 {[%clk 0:00:07]}  Kg5 {[%clk 0:00:18]} 57. Ke4 {[%clk 0:00:06]}  Kf6 {[%clk 0:00:17]} 58. Kf4 {[%clk 0:00:07]}  e5+ {[%clk 0:00:18]} 59. Kf3 {[%clk 0:00:06]}  Ke6 {[%clk 0:00:18]} 60. Ke4 {[%clk 0:00:06]}  Kd6 {[%clk 0:00:18]} 61. Kd3 {[%clk 0:00:04]}  Kc5 {[%clk 0:00:18]} 62. Ke4 {[%clk 0:00:04]}  Kb4 {[%clk 0:00:17]} 63. Kxe5 {[%clk 0:00:05]}  Kxa5 {[%clk 0:00:17]} 64. Kd4 {[%clk 0:00:06]}  Kb4 {[%clk 0:00:17]} 65. Kd3 {[%clk 0:00:07]}  Kb3 {[%clk 0:00:17]} 66. Kd2 {[%clk 0:00:06]}  Kb2 {[%clk 0:00:17]} 67. Kd3 {[%clk 0:00:05]}  a5 {[%clk 0:00:18]} 68. Kc4 {[%clk 0:00:05]}  a4 {[%clk 0:00:19]} 69. Kb4 {[%clk 0:00:06]}  a3 {[%clk 0:00:20]} 0-1


[Site "https://www.chess.com"]

[Event "Titled Tuesday Blitz May 4 2021"]
[White "AldokhinIvan"]
[Black "Kraemer, Martin"]
[BlackFideId "4671910"]
[WhiteElo "2539"]
[BlackElo "2482"]
[Result "0-1"]
[Round "04"]
[TimeControl "180+1"]
[Date "2021.05.04"]
[WhiteClock "0:00:02"]
[BlackClock "0:00:09"]

1. e4 {[%clk 0:02:58]}  e5 {[%clk 0:02:58]} 2. Nf3 {[%clk 0:02:58]}  Nc6 {[%clk 0:02:58]} 3. Bb5 {[%clk 0:02:58]}  a6 {[%clk 0:02:58]} 4. Ba4 {[%clk 0:02:59]}  d6 {[%clk 0:02:58]} 5. Bxc6+ {[%clk 0:02:51]}  bxc6 {[%clk 0:02:58]} 6. d4 {[%clk 0:02:52]}  f6 {[%clk 0:02:58]} 7. Nc3 {[%clk 0:02:48]}  Ne7 {[%clk 0:02:57]} 8. Nh4 {[%clk 0:02:43]}  g6 {[%clk 0:02:44]} 9. f4 {[%clk 0:02:42]}  Bg7 {[%clk 0:02:33]} 10. O-O {[%clk 0:02:30]}  exf4 {[%clk 0:02:27]} 11. Bxf4 {[%clk 0:02:17]}  O-O {[%clk 0:02:27]} 12. Nf3 {[%clk 0:02:10]}  Rb8 {[%clk 0:02:23]} 13. b3 {[%clk 0:01:54]}  h6 {[%clk 0:02:23]} 14. Qd3 {[%clk 0:01:49]}  g5 {[%clk 0:02:21]} 15. Bg3 {[%clk 0:01:43]}  f5 {[%clk 0:02:21]} 16. Rae1 {[%clk 0:01:12]}  f4 {[%clk 0:02:02]} 17. Bf2 {[%clk 0:01:12]}  a5 {[%clk 0:01:59]} 18. d5 {[%clk 0:00:45]}  cxd5 {[%clk 0:01:23]} 19. Nxd5 {[%clk 0:00:39]}  Be6 {[%clk 0:00:42]} 20. Nd4 {[%clk 0:00:33]}  Bxd4 {[%clk 0:00:31]} 21. Bxd4 {[%clk 0:00:33]}  Nxd5 {[%clk 0:00:22]} 22. exd5 {[%clk 0:00:29]}  Bf5 {[%clk 0:00:23]} 23. Qc4 {[%clk 0:00:20]}  Qd7 {[%clk 0:00:22]} 24. Bc3 {[%clk 0:00:15]}  Kh7 {[%clk 0:00:19]} 25. Qd4 {[%clk 0:00:13]}  Rbe8 {[%clk 0:00:19]} 26. Bxa5 {[%clk 0:00:12]}  Kg6 {[%clk 0:00:16]} 27. c4 {[%clk 0:00:11]}  Rxe1 {[%clk 0:00:15]} 28. Rxe1 {[%clk 0:00:11]}  Re8 {[%clk 0:00:16]} 29. h3 {[%clk 0:00:07]}  Rxe1+ {[%clk 0:00:13]} 30. Bxe1 {[%clk 0:00:07]}  Qe7 {[%clk 0:00:14]} 31. Kf2 {[%clk 0:00:07]}  Bb1 {[%clk 0:00:13]} 32. a4 {[%clk 0:00:07]}  Bc2 {[%clk 0:00:12]} 33. Qc3 {[%clk 0:00:07]}  Qe4 {[%clk 0:00:10]} 34. Qf3 {[%clk 0:00:03]}  Qd4+ {[%clk 0:00:09]} 35. Kf1 {[%clk 0:00:02]}  Bd3+ {[%clk 0:00:09]} 0-1


[Site "https://www.chess.com"]

[Event "Titled Tuesday Blitz May 4 2021"]
[White "Alfaro, William"]
[Black "Khnykin, Nikolay"]
[WhiteFideId "6100457"]
[BlackFideId "4188853"]
[WhiteElo "2074"]
[BlackElo "2280"]
[Result "1-0"]
[Round "04"]
[TimeControl "180+1"]
[Date "2021.05.04"]
[WhiteClock "0:00:37"]
[BlackClock "0:00:03"]

1. e4 {[%clk 0:03:00]}  e6 {[%clk 0:02:57]} 2. d4 {[%clk 0:02:59]}  d5 {[%clk 0:02:57]} 3. Nc3 {[%clk 0:02:57]}  Bb4 {[%clk 0:02:55]} 4. e5 {[%clk 0:02:45]}  c5 {[%clk 0:02:54]} 5. a3 {[%clk 0:02:44]}  Bxc3+ {[%clk 0:02:52]} 6. bxc3 {[%clk 0:02:45]}  Nc6 {[%clk 0:02:52]} 7. a4 {[%clk 0:02:28]}  Nge7 {[%clk 0:02:51]} 8. Ba3 {[%clk 0:02:24]}  cxd4 {[%clk 0:02:49]} 9. cxd4 {[%clk 0:02:22]}  O-O {[%clk 0:02:49]} 10. Nf3 {[%clk 0:01:57]}  Re8 {[%clk 0:02:48]} 11. c3 {[%clk 0:01:52]}  Nf5 {[%clk 0:02:47]} 12. Bd3 {[%clk 0:01:46]}  Qa5 {[%clk 0:02:46]} 13. Qd2 {[%clk 0:01:41]}  Qxa4 {[%clk 0:02:46]} 14. g4 {[%clk 0:01:33]}  Nh6 {[%clk 0:02:44]} 15. h3 {[%clk 0:01:27]}  Na5 {[%clk 0:02:31]} 16. Bb2 {[%clk 0:01:01]}  Qc6 {[%clk 0:01:50]} 17. Rxa5 {[%clk 0:00:59]}  Qb6 {[%clk 0:01:50]} 18. Ra1 {[%clk 0:00:55]}  Bd7 {[%clk 0:01:49]} 19. Ng5 {[%clk 0:00:52]}  g6 {[%clk 0:01:44]} 20. O-O {[%clk 0:00:50]}  Qd8 {[%clk 0:01:40]} 21. Bc1 {[%clk 0:00:45]}  f6 {[%clk 0:01:38]} 22. exf6 {[%clk 0:00:44]}  Qxf6 {[%clk 0:01:39]} 23. Nxh7 {[%clk 0:00:42]}  Qg7 {[%clk 0:01:19]} 24. Qxh6 {[%clk 0:00:41]}  Qxh6 {[%clk 0:01:16]} 25. Bxh6 {[%clk 0:00:42]}  Kxh7 {[%clk 0:01:16]} 26. Bg5 {[%clk 0:00:43]}  a6 {[%clk 0:01:13]} 27. h4 {[%clk 0:00:41]}  Rac8 {[%clk 0:01:12]} 28. Rac1 {[%clk 0:00:38]}  Kg7 {[%clk 0:01:07]} 29. Bf4 {[%clk 0:00:38]}  Rf8 {[%clk 0:00:52]} 30. Be5+ {[%clk 0:00:39]}  Kh6 {[%clk 0:00:48]} 31. Kg2 {[%clk 0:00:40]}  Rf7 {[%clk 0:00:27]} 32. Kg3 {[%clk 0:00:39]}  Rcf8 {[%clk 0:00:26]} 33. f4 {[%clk 0:00:39]}  Re8 {[%clk 0:00:17]} 34. g5+ {[%clk 0:00:40]}  Kh7 {[%clk 0:00:16]} 35. h5 {[%clk 0:00:40]}  Kg8 {[%clk 0:00:12]} 36. hxg6 {[%clk 0:00:38]}  Rg7 {[%clk 0:00:07]} 37. Rh1 {[%clk 0:00:37]}  Ree7 {[%clk 0:00:03]} 38. Rh6 {[%clk 0:00:37]} 1-0


[Site "https://www.chess.com"]

[Event "Titled Tuesday Blitz May 4 2021"]
[White "Arkell, Keith C"]
[Black "Devaev, Alexander"]
[WhiteFideId "400270"]
[BlackFideId "4169395"]
[WhiteElo "2398"]
[BlackElo "2185"]
[Result "1-0"]
[Round "04"]
[TimeControl "180+1"]
[Date "2021.05.04"]
[WhiteClock "0:00:17"]
[BlackClock "0:00:01"]

1. d4 {[%clk 0:03:00]}  Nf6 {[%clk 0:02:59]} 2. Nf3 {[%clk 0:03:00]}  e6 {[%clk 0:02:59]} 3. c4 {[%clk 0:03:00]}  c5 {[%clk 0:02:58]} 4. d5 {[%clk 0:03:00]}  exd5 {[%clk 0:02:59]} 5. cxd5 {[%clk 0:03:00]}  d6 {[%clk 0:03:00]} 6. Nc3 {[%clk 0:03:00]}  a6 {[%clk 0:03:00]} 7. a4 {[%clk 0:03:00]}  g6 {[%clk 0:03:01]} 8. Nd2 {[%clk 0:03:00]}  Bg7 {[%clk 0:03:01]} 9. Nc4 {[%clk 0:03:00]}  O-O {[%clk 0:03:02]} 10. Bf4 {[%clk 0:03:00]}  Ne8 {[%clk 0:03:03]} 11. g3 {[%clk 0:03:01]}  Ra7 {[%clk 0:02:38]} 12. a5 {[%clk 0:02:57]}  Qc7 {[%clk 0:02:33]} 13. Bg2 {[%clk 0:02:53]}  Nd7 {[%clk 0:02:33]} 14. O-O {[%clk 0:02:49]}  b5 {[%clk 0:02:32]} 15. axb6 {[%clk 0:02:49]}  Nxb6 {[%clk 0:02:33]} 16. Na5 {[%clk 0:02:48]}  Bb7 {[%clk 0:02:25]} 17. Qd2 {[%clk 0:02:35]}  Nf6 {[%clk 0:02:11]} 18. Rfc1 {[%clk 0:02:22]}  Nfd7 {[%clk 0:01:32]} 19. Nc6 {[%clk 0:02:18]}  Raa8 {[%clk 0:01:27]} 20. b4 {[%clk 0:02:11]}  Rfe8 {[%clk 0:01:25]} 21. bxc5 {[%clk 0:02:10]}  Nxc5 {[%clk 0:01:26]} 22. Rab1 {[%clk 0:02:04]}  Nbd7 {[%clk 0:01:22]} 23. e4 {[%clk 0:01:54]}  Ne5 {[%clk 0:00:53]} 24. Na4 {[%clk 0:01:26]}  Nxa4 {[%clk 0:00:26]} 25. Nxe5 {[%clk 0:01:26]}  Qe7 {[%clk 0:00:23]} 26. Nc6 {[%clk 0:01:22]}  Qd7 {[%clk 0:00:22]} 27. Qb4 {[%clk 0:01:17]}  Nc5 {[%clk 0:00:22]} 28. Rxc5 {[%clk 0:01:17]}  dxc5 {[%clk 0:00:20]} 29. Qxb7 {[%clk 0:01:17]}  Qg4 {[%clk 0:00:19]} 30. h3 {[%clk 0:01:15]}  Qe2 {[%clk 0:00:19]} 31. d6 {[%clk 0:01:11]}  Qd3 {[%clk 0:00:18]} 32. d7 {[%clk 0:01:09]}  Rf8 {[%clk 0:00:18]} 33. d8=Q {[%clk 0:00:59]}  Raxd8 {[%clk 0:00:19]} 34. Nxd8 {[%clk 0:00:59]}  Rxd8 {[%clk 0:00:19]} 35. Rc1 {[%clk 0:00:48]}  Bd4 {[%clk 0:00:19]} 36. Qc7 {[%clk 0:00:38]}  Re8 {[%clk 0:00:18]} 37. e5 {[%clk 0:00:35]}  Qe2 {[%clk 0:00:13]} 38. Rf1 {[%clk 0:00:24]}  Qa2 {[%clk 0:00:08]} 39. Qd7 {[%clk 0:00:20]}  Rf8 {[%clk 0:00:05]} 40. Bd5 {[%clk 0:00:20]}  Qe2 {[%clk 0:00:03]} 41. e6 {[%clk 0:00:19]}  fxe6 {[%clk 0:00:01]} 42. Bxe6+ {[%clk 0:00:17]} 1-0


[Site "https://www.chess.com"]

[Event "Titled Tuesday Blitz May 4 2021"]
[White "AwareIdea"]
[Black "Rojas Alarcon, Julian Antonio"]
[BlackFideId "5107407"]
[WhiteElo "2538"]
[BlackElo "2333"]
[Result "1-0"]
[Round "04"]
[TimeControl "180+1"]
[Date "2021.05.04"]
[WhiteClock "0:00:09"]
[BlackClock "0:00:13"]

1. d4 {[%clk 0:03:00]}  Nf6 {[%clk 0:02:59]} 2. c4 {[%clk 0:03:00]}  e6 {[%clk 0:02:59]} 3. g3 {[%clk 0:03:00]}  d5 {[%clk 0:02:55]} 4. Bg2 {[%clk 0:02:58]}  dxc4 {[%clk 0:02:55]} 5. Nf3 {[%clk 0:02:54]}  a6 {[%clk 0:02:53]} 6. Ne5 {[%clk 0:02:51]}  c5 {[%clk 0:02:41]} 7. e3 {[%clk 0:02:37]}  Ra7 {[%clk 0:02:29]} 8. O-O {[%clk 0:02:14]}  b5 {[%clk 0:02:28]} 9. a4 {[%clk 0:02:09]}  cxd4 {[%clk 0:02:12]} 10. axb5 {[%clk 0:02:04]}  Be7 {[%clk 0:02:03]} 11. exd4 {[%clk 0:01:48]}  O-O {[%clk 0:02:01]} 12. Nc3 {[%clk 0:01:34]}  Bb7 {[%clk 0:01:57]} 13. Nxc4 {[%clk 0:01:23]}  Bxg2 {[%clk 0:01:55]} 14. Kxg2 {[%clk 0:01:23]}  Rd7 {[%clk 0:01:42]} 15. bxa6 {[%clk 0:01:14]}  Nc6 {[%clk 0:01:31]} 16. Be3 {[%clk 0:01:05]}  Qc7 {[%clk 0:01:17]} 17. Nb5 {[%clk 0:00:58]}  Qb8 {[%clk 0:01:11]} 18. Qa4 {[%clk 0:00:37]}  Nd5 {[%clk 0:01:10]} 19. a7 {[%clk 0:00:30]}  Qa8 {[%clk 0:01:08]} 20. Kg1 {[%clk 0:00:30]}  h5 {[%clk 0:00:55]} 21. Ne5 {[%clk 0:00:28]}  Nxe5 {[%clk 0:00:55]} 22. dxe5 {[%clk 0:00:29]}  Nxe3 {[%clk 0:00:48]} 23. fxe3 {[%clk 0:00:30]}  h4 {[%clk 0:00:48]} 24. Nd6 {[%clk 0:00:18]}  Rc7 {[%clk 0:00:40]} 25. gxh4 {[%clk 0:00:18]}  Rd8 {[%clk 0:00:24]} 26. Qe4 {[%clk 0:00:11]}  Rxa7 {[%clk 0:00:20]} 27. Qxa8 {[%clk 0:00:10]}  Rdxa8 {[%clk 0:00:21]} 28. Rxa7 {[%clk 0:00:10]}  Rxa7 {[%clk 0:00:21]} 29. Nxf7 {[%clk 0:00:10]}  Bxh4 {[%clk 0:00:20]} 30. Nd6 {[%clk 0:00:11]}  Ra5 {[%clk 0:00:19]} 31. Nc4 {[%clk 0:00:11]}  Rc5 {[%clk 0:00:18]} 32. Rf4 {[%clk 0:00:10]}  Be7 {[%clk 0:00:18]} 33. Re4 {[%clk 0:00:10]}  Rb5 {[%clk 0:00:19]} 34. Kf1 {[%clk 0:00:10]}  Kf7 {[%clk 0:00:19]} 35. Ke2 {[%clk 0:00:11]}  Kg6 {[%clk 0:00:19]} 36. Kd3 {[%clk 0:00:11]}  Bg5 {[%clk 0:00:17]} 37. h4 {[%clk 0:00:11]}  Bh6 {[%clk 0:00:17]} 38. Rg4+ {[%clk 0:00:11]}  Kh7 {[%clk 0:00:17]} 39. Rd4 {[%clk 0:00:11]}  Kg6 {[%clk 0:00:15]} 40. Rd7 {[%clk 0:00:11]}  Rb3+ {[%clk 0:00:13]} 41. Kd4 {[%clk 0:00:11]}  Rb5 {[%clk 0:00:14]} 42. Re7 {[%clk 0:00:11]}  Kh5 {[%clk 0:00:13]} 43. Rxe6 {[%clk 0:00:10]}  Kxh4 {[%clk 0:00:14]} 44. Rg6 {[%clk 0:00:08]}  Rb4 {[%clk 0:00:13]} 45. e6 {[%clk 0:00:08]}  Kh5 {[%clk 0:00:14]} 46. Rg2 {[%clk 0:00:07]}  Rb7 {[%clk 0:00:13]} 47. Kd5 {[%clk 0:00:07]}  Bg5 {[%clk 0:00:13]} 48. e4 {[%clk 0:00:07]}  Be7 {[%clk 0:00:13]} 49. e5 {[%clk 0:00:08]}  Rb5+ {[%clk 0:00:13]} 50. Kd4 {[%clk 0:00:08]}  Rb4 {[%clk 0:00:13]} 51. Rf2 {[%clk 0:00:07]}  g5 {[%clk 0:00:13]} 52. Rf7 {[%clk 0:00:07]}  Bd8 {[%clk 0:00:14]} 53. e7 {[%clk 0:00:07]}  Bxe7 {[%clk 0:00:14]} 54. Rxe7 {[%clk 0:00:08]}  g4 {[%clk 0:00:15]} 55. Rg7 {[%clk 0:00:08]}  Kh4 {[%clk 0:00:14]} 56. e6 {[%clk 0:00:09]}  g3 {[%clk 0:00:13]} 57. e7 {[%clk 0:00:09]}  Rb8 {[%clk 0:00:13]} 58. Kd5 {[%clk 0:00:09]}  Kh3 {[%clk 0:00:13]} 59. Ke6 {[%clk 0:00:09]}  g2 {[%clk 0:00:13]} 60. Kf7 {[%clk 0:00:09]}  Rb7 {[%clk 0:00:13]} 61. Rxg2 {[%clk 0:00:07]}  Kxg2 {[%clk 0:00:13]} 62. Kf8 {[%clk 0:00:08]}  Rb8+ {[%clk 0:00:12]} 63. e8=Q {[%clk 0:00:08]}  Rxe8+ {[%clk 0:00:13]} 64. Kxe8 {[%clk 0:00:09]} 1-0


[Site "https://www.chess.com"]

[Event "Titled Tuesday Blitz May 4 2021"]
[White "Bellahcene, Bilel"]
[Black "Dimic, Pavle"]
[WhiteFideId "696358"]
[BlackFideId "937428"]
[WhiteElo "2493"]
[BlackElo "2216"]
[Result "1-0"]
[Round "04"]
[TimeControl "180+1"]
[Date "2021.05.04"]
[WhiteClock "0:01:36"]
[BlackClock "0:01:46"]

1. e4 {[%clk 0:03:00]}  c5 {[%clk 0:02:57]} 2. Nf3 {[%clk 0:03:00]}  Nc6 {[%clk 0:02:57]} 3. b4 {[%clk 0:02:59]}  cxb4 {[%clk 0:02:55]} 4. d4 {[%clk 0:02:58]}  d5 {[%clk 0:02:56]} 5. exd5 {[%clk 0:02:59]}  Qxd5 {[%clk 0:02:55]} 6. c4 {[%clk 0:03:00]}  bxc3 {[%clk 0:02:31]} 7. Nxc3 {[%clk 0:02:59]}  Qa5 {[%clk 0:02:32]} 8. d5 {[%clk 0:03:00]}  Ne5 {[%clk 0:02:23]} 9. Bd2 {[%clk 0:02:51]}  Nxf3+ {[%clk 0:02:15]} 10. Qxf3 {[%clk 0:02:52]}  a6 {[%clk 0:02:06]} 11. Rc1 {[%clk 0:02:43]}  Qd8 {[%clk 0:01:56]} 12. Bb5+ {[%clk 0:01:46]}  Bd7 {[%clk 0:01:47]} 13. Bxd7+ {[%clk 0:01:39]}  Qxd7 {[%clk 0:01:47]} 14. O-O {[%clk 0:01:38]}  Nf6 {[%clk 0:01:47]} 15. Rfe1 {[%clk 0:01:38]}  g6 {[%clk 0:01:46]} 16. Qxf6 {[%clk 0:01:36]} 1-0


[Site "https://www.chess.com"]

[Event "Titled Tuesday Blitz May 4 2021"]
[White "Bendayan Claros, Aaron"]
[Black "Noboa Silva, Kevin"]
[WhiteFideId "3803392"]
[BlackFideId "3618471"]
[WhiteElo "2166"]
[BlackElo "2161"]
[Result "1-0"]
[Round "04"]
[TimeControl "180+1"]
[Date "2021.05.04"]
[WhiteClock "0:00:17"]
[BlackClock "0:01:16"]

1. d4 {[%clk 0:03:00]}  Nf6 {[%clk 0:02:59]} 2. Bg5 {[%clk 0:02:59]}  e6 {[%clk 0:02:59]} 3. e4 {[%clk 0:02:57]}  h6 {[%clk 0:02:56]} 4. Bxf6 {[%clk 0:02:49]}  Qxf6 {[%clk 0:02:57]} 5. c3 {[%clk 0:02:47]}  d6 {[%clk 0:02:56]} 6. Bd3 {[%clk 0:02:46]}  e5 {[%clk 0:02:55]} 7. Ne2 {[%clk 0:02:45]}  g5 {[%clk 0:02:52]} 8. O-O {[%clk 0:02:44]}  Nc6 {[%clk 0:02:52]} 9. d5 {[%clk 0:02:43]}  Ne7 {[%clk 0:02:52]} 10. Ng3 {[%clk 0:02:41]}  Ng6 {[%clk 0:02:50]} 11. Be2 {[%clk 0:02:39]}  Nf4 {[%clk 0:02:50]} 12. Bg4 {[%clk 0:02:37]}  Bxg4 {[%clk 0:02:44]} 13. Qxg4 {[%clk 0:02:36]}  h5 {[%clk 0:02:44]} 14. Qd1 {[%clk 0:01:53]}  h4 {[%clk 0:02:38]} 15. Nf5 {[%clk 0:01:53]}  Be7 {[%clk 0:02:32]} 16. Qg4 {[%clk 0:01:51]}  Qg6 {[%clk 0:02:20]} 17. c4 {[%clk 0:01:50]}  Nh5 {[%clk 0:02:11]} 18. Nc3 {[%clk 0:01:36]}  Nf6 {[%clk 0:02:08]} 19. Qe2 {[%clk 0:01:36]}  g4 {[%clk 0:02:07]} 20. Nb5 {[%clk 0:01:31]}  O-O-O {[%clk 0:02:05]} 21. Nxe7+ {[%clk 0:01:29]}  Kb8 {[%clk 0:02:04]} 22. Nxg6 {[%clk 0:01:30]}  fxg6 {[%clk 0:02:03]} 23. Qe3 {[%clk 0:01:23]}  b6 {[%clk 0:02:01]} 24. Qa3 {[%clk 0:01:17]}  a5 {[%clk 0:01:32]} 25. b4 {[%clk 0:01:12]}  Kb7 {[%clk 0:01:33]} 26. bxa5 {[%clk 0:01:11]}  Ra8 {[%clk 0:01:31]} 27. Nxd6+ {[%clk 0:00:37]}  cxd6 {[%clk 0:01:28]} 28. Qxd6 {[%clk 0:00:38]}  Nxe4 {[%clk 0:01:19]} 29. Qxb6+ {[%clk 0:00:35]}  Kc8 {[%clk 0:01:19]} 30. Qc6+ {[%clk 0:00:29]}  Kd8 {[%clk 0:01:18]} 31. Qxa8+ {[%clk 0:00:28]}  Ke7 {[%clk 0:01:18]} 32. Qxh8 {[%clk 0:00:29]}  Kd6 {[%clk 0:01:17]} 33. a6 {[%clk 0:00:27]}  g3 {[%clk 0:01:16]} 34. hxg3 {[%clk 0:00:27]}  hxg3 {[%clk 0:01:16]} 35. a7 {[%clk 0:00:26]}  gxf2+ {[%clk 0:01:16]} 36. Rxf2 {[%clk 0:00:27]}  Kc5 {[%clk 0:01:15]} 37. a8=Q {[%clk 0:00:26]}  Kd4 {[%clk 0:01:16]} 38. d6 {[%clk 0:00:25]}  Ke3 {[%clk 0:01:16]} 39. Re1+ {[%clk 0:00:25]}  Kd3 {[%clk 0:01:15]} 40. Rxe4 {[%clk 0:00:24]}  Kc3 {[%clk 0:01:16]} 41. Rf3+ {[%clk 0:00:23]}  Kd2 {[%clk 0:01:16]} 42. Re2+ {[%clk 0:00:23]}  Kxe2 {[%clk 0:01:15]} 43. Re3+ {[%clk 0:00:23]}  Kxe3 {[%clk 0:01:12]} 44. Qxe5+ {[%clk 0:00:23]}  Kd3 {[%clk 0:01:11]} 45. Qd4+ {[%clk 0:00:22]}  Kxd4 {[%clk 0:01:11]} 46. d7 {[%clk 0:00:22]}  g5 {[%clk 0:01:10]} 47. d8=Q+ {[%clk 0:00:22]}  Kc3 {[%clk 0:01:10]} 48. Qxg5 {[%clk 0:00:20]}  Kd3 {[%clk 0:01:09]} 49. Qd2+ {[%clk 0:00:19]}  Kxd2 {[%clk 0:01:09]} 50. c5 {[%clk 0:00:20]}  Kd3 {[%clk 0:01:09]} 51. c6 {[%clk 0:00:20]}  Kc2 {[%clk 0:01:09]} 52. c7 {[%clk 0:00:21]}  Kb2 {[%clk 0:01:10]} 53. Qb7+ {[%clk 0:00:21]}  Ka1 {[%clk 0:01:10]} 54. a4 {[%clk 0:00:21]}  Ka2 {[%clk 0:01:10]} 55. a5 {[%clk 0:00:21]}  Ka3 {[%clk 0:01:11]} 56. a6 {[%clk 0:00:22]}  Ka2 {[%clk 0:01:12]} 57. a7 {[%clk 0:00:21]}  Ka1 {[%clk 0:01:13]} 58. c8=Q {[%clk 0:00:17]}  Ka2 {[%clk 0:01:11]} 59. g4 {[%clk 0:00:17]}  Ka1 {[%clk 0:01:12]} 60. g5 {[%clk 0:00:17]}  Ka2 {[%clk 0:01:13]} 61. g6 {[%clk 0:00:18]}  Ka1 {[%clk 0:01:14]} 62. g7 {[%clk 0:00:18]}  Ka2 {[%clk 0:01:15]} 63. g8=Q+ {[%clk 0:00:18]}  Ka1 {[%clk 0:01:16]} 64. a8=Q# {[%clk 0:00:17]} 1-0


[Site "https://www.chess.com"]